[Event "XVII Juros Svente 2020-A"]
[Site "Klaipeda"]
[Date "2020.07.20"]
[Round "1.2"]
[White "Juksta, Karolis"]
[Black "Bazilius, Augustinas"]
[Result "1-0"]
[ECO "A57"]
[WhiteElo "2366"]
[BlackElo "1632"]
[Annotator "RC"]
[PlyCount "68"]
[EventDate "2020.07.20"]
[EventType "tourn"]
[EventCountry "LTU"]
[SourceTitle "playchess.com"]
[Source "ChessBase"]
[SourceQuality "1"]
[TimeControl "40/5400+30:1800+30"]

1. d4 {[%emt 0:00:00]} Nf6 {[%emt 0:00:00]} 2. c4 {[%emt 0:00:00]} c5 {[%emt 0:00:00]} 3. d5 {[%emt 0:00:00]} b5 {[%emt 0:00:00]} 4. cxb5 {[%emt 0:00:00]} a6 {[%emt 0:00:00]} 5. e3 {[%emt 0:00:47]} g6 {[%emt 0:00:12]} 6. Nc3 {[%emt 0:00:48]} d6 {[%emt 0:00:02]} 7. e4 {[%emt 0:03:21]} Bg7 {[%emt 0:00:16]} 8. Nf3 {[%emt 0:01:23]} O-O {[%emt 0:00:19]} 9. a4 {[%emt 0:02:13]} axb5 {[%emt 0:00:25]} 10. Bxb5 {[%emt 0:00:13]} Ba6 {[%emt 0:00:25]} 11. Bf4 {[%emt 0:06:42]} Qa5 {[%emt 0:00:32]} 12. O-O {[%emt 0:01:07]} Nbd7 {[%emt 0:01:36]} 13. Re1 {[%emt 0:04:02]} Qb4 {[%emt 0:02:47]} 14. Bd2 {[%emt 0:03:33]} Qa5 {[%emt 0:06:03]} 15. h3 {[%emt 0:10:56]} Qc7 {[%emt 0:09:04]} 16. Bc6 {[%emt 0:05:30]} Bb7 {[%emt 0:01:43]} 17. Nb5 {[%emt 0:00:35]} Qc8 {[%emt 0:00:11]} 18. Bxb7 {[%emt 0:02:09]} Qxb7 {[%emt 0:00:06]} 19. Bc3 {[%emt 0:01:46]} Nb6 {[%emt 0:03:11]} 20. b3 {[%emt 0:09:13]} Qd7 {[%emt 0:04:05]} 21. Nd2 {[%emt 0:03:11]} Rfc8 {[%emt 0:01:40]} 22. Nc4 {[%emt 0:02:10]} Ra6 {[%emt 0:02:12]} 23. Qd3 {[%emt 0:02:50]} Nxc4 {[%emt 0:00:51]} 24. Qxc4 {[%emt 0:07:50]} Qb7 {[%emt 0:03:31]} 25. Bxf6 {[%emt 0:01:29]} exf6 {[%emt 0:02:46]} 26. Ra2 {[%emt 0:03:15]} Qd7 {[%emt 0:00:34]} 27. Nd4 {[%emt 0:02:30]} Rb6 {[%emt 0:03:09]} 28. Nc6 {[%emt 0:00:09]} Rcxc6 {[%emt 0:03:37]} 29. dxc6 {[%emt 0:00:07]} Qxc6 {[%emt 0:00:07]} 30. a5 {[%emt 0:02:41]} Rb4 {[%emt 0:01:07]} 31. a6 {[%emt 0:03:21]} Rxc4 {[%emt 0:02:00]} 32. bxc4 {[%emt 0:00:36]} Bf8 {[%emt 0:02:19]} 33. a7 {[%emt 0:00:16]} Qa8 {[%emt 0:00:07]} 34. Rb1 {[%emt 0:00:24]} Qxe4 {[%emt 0:00:02]} 1-0

[Event "XVII Juros Svente 2020-A"]
[Site "Klaipeda"]
[Date "2020.07.20"]
[Round "1.11"]
[White "Greicius, Pijus"]
[Black "Aleidzans, Vadims"]
[Result "1-0"]
[ECO "A05"]
[WhiteElo "1893"]
[BlackElo "1346"]
[Annotator "NA RC"]
[PlyCount "101"]
[EventDate "2020.07.20"]
[EventType "tourn"]
[EventCountry "LTU"]
[SourceTitle "playchess.com"]
[Source "ChessBase"]
[SourceQuality "1"]
[TimeControl "40/5400+30:1800+30"]

{[%evp 8,94,0,6,3,32767,32767,8,35,5,30,0,87,11,92,58,64,57,49,39,53,41,57,37,57,70,80,56,71,37,51,49,63,31,44,5,99,120,364,389,420,238,282,346,288,248,237,269,510,537,538,524,850,890,875,853,925,32767,32767,32767,32767,341,32767,345,564,53,74,0,0,0,697,799,711,773,866,867,883,775,942,553,523,32767,538,522,534,338,322,345,432]} 1. Nf3 {[%emt 0:00:00]} Nf6 {[%emt 0:00:00]} 2. b3 {[%emt 0:00:00]} b6 {[%emt 0:00:09]} 3. Bb2 {[%emt 0:00:00]} Bb7 4. e3 {[%emt 0:00:21]} e6 {[%emt 0:01:05]} 5. c4 {[%emt 0:00:21]} c5 {[%emt 0:00:30]} 6. d4 {[%emt 0:00:40] A30: Symmetrical English: Double Fianchetto and Hedgehog.} d5 {[%emt 0:00:55]} 7. Bd3 {[%emt 0:01:42]} Nc6 {[%emt 0:00:47]} 8. O-O {[%emt 0:00:31] [#]} Rc8 $146 {[%emt 0:00:08]} ({Predecessor:} 8... cxd4 9. exd4 Bd6 10. Nc3 dxc4 11. bxc4 O-O 12. Re1 Ne7 13. Ne5 Rc8 14. Re3 Ng6 {0-1 (29) Kosic,D (2517)-Cori,J (2609) Baku 2016}) 9. a3 {[%emt 0:00:45]} a6 {[%emt 0:00:21]} (9... cxd4 $11 10. exd4 Bd6) 10. Nbd2 {[%emt 0:00:18]} Bd6 {[%emt 0:01:04]} (10... cxd4 $11 {keeps the balance.} 11. exd4 (11. Nxd4 dxc4 12. bxc4 Ne5 $11) 11... Bd6) 11. dxc5 {[%emt 0:00:52]} Bxc5 {[%emt 0:00:10]} 12. Qe2 {[%emt 0:00:20]} dxc4 {[%emt 0:01:27]} 13. Nxc4 {[%emt 0:00:14]} b5 {[%emt 0:01:52]} 14. Ncd2 {[%emt 0:02:18]} O-O {[%emt 0:00:56]} 15. b4 {[%emt 0:00:18]} Be7 {[%emt 0:01:20]} 16. Rfd1 {[%emt 0:00:29]} Nd5 {[%emt 0:00:17]} 17. Nb3 {[%emt 0:00:24]} Qb6 {[%emt 0:00:44]} 18. Rac1 {[%emt 0:01:49]} Bf6 {[%emt 0:01:05]} 19. Nc5 {[%emt 0:02:33]} Rfd8 {[%emt 0:01:51]} 20. Bxf6 {[%emt 0:02:12]} Nxf6 {[%emt 0:00:16]} 21. e4 {[%emt 0:00:51]} h6 {[%emt 0:00:51] [#]} (21... Nd7 $11 {remains equal.}) 22. e5 $1 {[%emt 0:01:58]} Nd5 $2 {[%emt 0:00:19]} (22... Nh7 $16) 23. Qe4 {[%emt 0:00:08]} g6 {[%emt 0:00:48]} 24. Nxe6 {[%emt 0:01:54]} Re8 {[%emt 0:10:35] [#]} 25. Nc5 $1 {[%emt 0:00:55]} ({Weaker is} 25. Qxd5 Rxe6 26. Be4 Rce8 $16) 25... Nce7 {[%emt 0:05:55]} 26. Qg4 {[%emt 0:04:44]} Rcd8 {[%emt 0:00:37]} 27. e6 {[%emt 0:00:19]} f5 $2 {[%emt 0:00:47]} (27... Bc8 {might work better.} 28. Re1 Qd6) 28. Qh4 {[%emt 0:02:32]} Kg7 {[%emt 0:00:40]} 29. Ne5 {[%emt 0:00:11]} g5 {[%emt 0:01:42]} (29... Bc8 $142 30. Nf7 Bxe6) 30. Qh5 {[%emt 0:00:34]} Rf8 {[%emt 0:00:33] [#]} 31. Nf7 $1 {[%emt 0:00:24] Double Attack} Ng8 {[%emt 0:02:16]} 32. Bxf5 {[%emt 0:05:42]} Nf4 {[%emt 0:01:18]} 33. Qg4 {[%emt 0:00:07]} Nf6 {[%emt 0:00:25]} 34. Nxd8 {[%emt 0:05:15]} Nxg4 {[%emt 0:05:11]} 35. Rd7+ {[%emt 0:09:42] Double Attack} ({And not} 35. Bxg4 Rxd8 36. Nd7 (36. Rxd8 Qxd8 37. Rd1 Bd5 $15) 36... Qa7 $14 {[%mdl 64] Decoy}) 35... Kf6 {[%emt 0:00:40]} (35... Kg8 {might work better.} 36. Rxb7 (36. e7 Re8 $14) 36... Ne2+ 37. Kf1 Qd6) 36. Ndxb7 $2 {[%emt 0:00:37]} (36. Bxg4 $18 Rxd8 37. e7) 36... Kxf5 {[%emt 0:00:56]} 37. Re1 {[%emt 0:03:58]} ({White should try} 37. e7 $16 Re8 38. Nd6+ Qxd6 39. Rxd6 Ne2+ 40. Kf1 Rxe7 41. Ra1 Nxh2+ 42. Ke1 Nf4+ 43. Kd1) 37... Qc6 {[%emt 0:01:14]} 38. f3 {[%emt 0:00:29]} Ne5 $2 {[%emt 0:00:30]} (38... Nf6 $11) 39. Nd6+ {[%emt 0:02:07]} Kg6 {[%emt 0:00:38]} 40. Rxe5 {[%emt 0:00:55]} Nh3+ {[%emt 0:01:52]} 41. gxh3 {[%emt 0:31:52]} Qxf3 {[%emt 0:30:08]} 42. Nf7 {[%emt 0:00:07]} Qxh3 {[%emt 0:01:59]} 43. Rd3 {[%emt 0:01:17]} Qg4+ {[%emt 0:00:21]} 44. Kh1 {[%emt 0:00:01]} Qf4 {[%emt 0:01:05]} 45. Re1 {[%emt 0:00:33]} Qf2 {[%emt 0:01:03]} 46. Rg1 {[%emt 0:00:39]} Qe2 {[%emt 0:01:00]} 47. Rdg3 {[%emt 0:04:30]} ({But not} 47. Rh3 Kg7 $18) 47... Rc8 $18 {[%emt 0:00:16]} 48. h4 {[%emt 0:12:08]} Rxc5 {[%emt 0:00:55]} 49. bxc5 {[%emt 0:01:43]} Qxe6 {[%emt 0:00:16]} 50. Nxg5 {[%emt 0:00:26]} Qc6+ {[%emt 0:00:39]} 51. Kh2 {[%emt 0:01:31]} 1-0

[Event "XVII Juros Svente 2020-A"]
[Site "Klaipeda"]
[Date "2020.07.21"]
[Round "2.10"]
[White "Viliusis, Neimantas"]
[Black "Pocius, Vaclovas"]
[Result "0-1"]
[ECO "A04"]
[WhiteElo "1461"]
[BlackElo "1714"]
[Annotator "NA RC"]
[PlyCount "123"]
[EventDate "2020.07.20"]
[EventType "tourn"]
[EventCountry "LTU"]
[SourceTitle "playchess.com"]
[Source "ChessBase"]
[SourceQuality "1"]
[TimeControl "40/5400+30:1800+30"]

1. Nf3 {[%emt 0:00:00]} b6 {[%emt 0:01:29]} 2. g3 {[%emt 0:00:00]} Bb7 {[%emt 0:00:10]} 3. Bg2 {[%emt 0:00:01]} e5 {[%emt 0:00:56]} 4. d3 {[%emt 0:01:03]} f5 {[%emt 0:05:53]} 5. O-O {[%emt 0:02:40]} d6 {[%emt 0:00:58]} 6. c4 {[%emt 0:02:31]} Nf6 {[%emt 0:03:34]} 7. Nc3 {[%emt 0:01:06]} Be7 {[%emt 0:06:19]} 8. Qb3 {[%emt 0:04:39]} Nc6 {[%emt 0:08:27]} 9. Nd5 {[%emt 0:06:55]} Na5 {[%emt 0:08:51]} 10. Nxf6+ {[%emt 0:02:53]} Bxf6 {[%emt 0:00:31]} 11. Qc2 {[%emt 0:01:05]} g5 {[%emt 0:03:55]} 12. e4 {[%emt 0:06:59]} f4 {[%emt 0:05:11]} 13. b4 {[%emt 0:01:43]} Nc6 {[%emt 0:03:47]} 14. a3 {[%emt 0:00:29]} g4 {[%emt 0:03:04]} 15. Ne1 {[%emt 0:15:14]} f3 {[%emt 0:04:22]} 16. Nxf3 {[%emt 0:01:04]} gxf3 {[%emt 0:00:38]} 17. Bxf3 {[%emt 0:00:03]} Nd4 {[%emt 0:02:28]} 18. Bh5+ {[%emt 0:00:28]} Ke7 {[%emt 0:05:24]} 19. Qd1 {[%emt 0:01:23]} Bc8 {[%emt 0:00:47]} 20. Be3 {[%emt 0:01:25]} Bh3 {[%emt 0:00:42]} 21. Re1 {[%emt 0:00:14]} Ne6 {[%emt 0:02:56]} 22. Bg4 {[%emt 0:02:46]} Bxg4 {[%emt 0:00:48]} 23. Qxg4 {[%emt 0:00:02]} Qg8 {[%emt 0:01:14]} 24. Qxg8 {[%emt 0:03:30]} Raxg8 {[%emt 0:00:09]} 25. Rac1 {[%emt 0:00:29]} c5 {[%emt 0:00:54]} 26. b5 {[%emt 0:02:45]} Bg5 {[%emt 0:01:59]} 27. Bxg5+ {[%emt 0:02:06]} Nxg5 {[%emt 0:00:37]} 28. Kg2 {[%emt 0:00:13]} Rf8 {[%emt 0:00:23]} 29. Re3 {[%emt 0:00:29]} Rf7 {[%emt 0:02:06]} 30. Ra1 {[%emt 0:00:45]} Rhf8 {[%emt 0:00:12]} 31. Ra2 {[%emt 0:00:30]} Nf3 {[%emt 0:01:54]} 32. a4 {[%emt 0:00:45]} Nd4 {[%emt 0:02:17]} 33. a5 {[%emt 0:01:18]} Kd7 {[%emt 0:01:22]} 34. axb6 {[%emt 0:00:56]} axb6 {[%emt 0:00:01]} 35. Ra7+ {[%emt 0:00:12]} Kc8 {[%emt 0:00:10]} 36. Rxf7 {[%emt 0:00:08]} Rxf7 {[%emt 0:00:08]} 37. f3 {[%emt 0:06:46]} Ra7 {[%emt 0:00:49]} 38. h4 {[%emt 0:02:45]} Ra2+ {[%emt 0:01:10]} 39. Kf1 {[%emt 0:00:55]} Ra3 {[%emt 0:01:52]} 40. f4 {[%emt 0:05:54]} Nc2 {[%emt 0:00:42]} 41. Rf3 {[%emt 0:30:36]} Nb4 {[%emt 0:30:28]} 42. Ke2 {[%emt 0:02:31]} Kd8 {[%emt 0:00:52]} 43. f5 {[%emt 0:00:10]} Ke7 {[%emt 0:00:34]} 44. g4 {[%emt 0:07:12]} Ra2+ {[%emt 0:00:23]} 45. Ke1 {[%emt 0:03:36]} Rh2 {[%emt 0:00:50]} 46. Rg3 {[%emt 0:01:34]} Rxh4 {[%emt 0:00:57]} 47. Ke2 {[%emt 0:01:51]} Rh2+ {[%emt 0:05:55]} 48. Ke1 {[%emt 0:00:58]} Kf7 {[%emt 0:02:12]} 49. g5 {[%emt 0:00:38]} Kg7 {[%emt 0:03:11]} 50. Kd1 {[%emt 0:02:44]} Kf7 {[%emt 0:02:19]} 51. Ke1 {[%emt 0:00:27]} Nc2+ {[%emt 0:02:37]} 52. Kd1 Nd4 {[%emt 0:00:43]} 53. Ke1 {[%emt 0:01:28]} Ne2 {[%emt 0:00:20]} 54. Rg4 {[%emt 0:01:29]} Nf4 {[%emt 0:00:21]} 55. Rg3 {[%emt 0:01:56]} Rg2 {[%emt 0:00:52]} 56. Rxg2 {[%emt 0:01:17]} Nxg2+ {[%emt 0:00:02]} 57. Kf2 {[%emt 0:00:17]} Nf4 {[%emt 0:00:12]} 58. Ke3 {[%emt 0:00:05]} Nh3 {[%emt 0:00:09]} 59. g6+ {[%emt 0:00:10]} hxg6 {[%emt 0:00:17]} 60. fxg6+ {[%emt 0:00:04]} Kxg6 {[%emt 0:00:10]} 61. Kf3 {[%emt 0:00:22]} Nf4 {[%emt 0:00:12]} 62. Ke3 0-1

[Event "XVII Juros Svente 2020-A"]
[Site "Klaipeda"]
[Date "2020.07.21"]
[Round "2.11"]
[White "Bazilius, Augustinas"]
[Black "Piksrys, Rutenis"]
[Result "0-1"]
[ECO "B06"]
[WhiteElo "1632"]
[BlackElo "1532"]
[Annotator "NA RC"]
[PlyCount "76"]
[EventDate "2020.07.20"]
[EventType "tourn"]
[EventCountry "LTU"]
[SourceTitle "playchess.com"]
[Source "ChessBase"]
[SourceQuality "1"]
[TimeControl "40/5400+30:1800+30"]

1. e4 {[%emt 0:00:00]} g6 {[%emt 0:00:00]} 2. d4 {[%emt 0:00:00]} Bg7 {[%emt 0:00:18]} 3. Nc3 {[%emt 0:00:13]} d6 {[%emt 0:00:11]} 4. Be3 {[%emt 0:00:21]} Nf6 {[%emt 0:00:14]} 5. Qd2 {[%emt 0:00:08]} Nbd7 {[%emt 0:01:24]} 6. f3 {[%emt 0:00:10]} O-O {[%emt 0:00:28]} 7. Bh6 {[%emt 0:01:10]} e5 {[%emt 0:01:02]} 8. Nge2 {[%emt 0:00:51]} Nxe4 {[%emt 0:00:26]} 9. Nxe4 {[%emt 0:04:49]} Qh4+ {[%emt 0:00:09]} 10. g3 {[%emt 0:02:33]} Qxh6 {[%emt 0:00:10]} 11. f4 {[%emt 0:01:37]} exd4 {[%emt 0:01:03]} 12. O-O-O {[%emt 0:00:30]} d5 {[%emt 0:03:27]} 13. Ng5 {[%emt 0:02:34]} c5 {[%emt 0:01:06]} 14. Nf3 {[%emt 0:03:23]} Nf6 {[%emt 0:00:50]} 15. h3 {[%emt 0:01:33]} Ne4 {[%emt 0:00:41]} 16. Qe1 {[%emt 0:00:01]} Re8 {[%emt 0:03:11]} 17. Nd2 {[%emt 0:03:04]} f5 {[%emt 0:04:05]} 18. Bg2 {[%emt 0:03:15]} Bf6 {[%emt 0:00:44]} 19. g4 {[%emt 0:03:49]} Bh4 {[%emt 0:03:39]} 20. Qf1 {[%emt 0:00:54]} Be7 {[%emt 0:03:34]} 21. gxf5 {[%emt 0:07:07]} Bxf5 {[%emt 0:00:40]} 22. Nxe4 {[%emt 0:01:38]} dxe4 {[%emt 0:02:46]} 23. Ng3 {[%emt 0:00:52]} Bd6 {[%emt 0:01:18]} 24. Nxf5 {[%emt 0:00:35]} gxf5 {[%emt 0:00:48]} 25. Kb1 {[%emt 0:00:33]} Kh8 {[%emt 0:01:09]} 26. Qb5 {[%emt 0:00:39]} b6 {[%emt 0:01:04]} 27. Qd7 {[%emt 0:00:45]} Qe6 {[%emt 0:01:30]} 28. Qb7 {[%emt 0:00:27]} Rg8 {[%emt 0:01:27]} 29. Rhg1 {[%emt 0:00:49]} Bxf4 {[%emt 0:01:13]} 30. Bxe4 {[%emt 0:00:52]} Qxe4 {[%emt 0:02:46]} 31. Qf7 {[%emt 0:00:19]} Qe5 {[%emt 0:06:52]} 32. Rde1 {[%emt 0:01:16]} Be3 {[%emt 0:01:25]} 33. Rgf1 {[%emt 0:02:24]} f4 {[%emt 0:01:19]} 34. b3 {[%emt 0:00:15]} Rg7 {[%emt 0:01:21]} 35. Qc4 {[%emt 0:00:18]} Rag8 {[%emt 0:00:59]} 36. Qa6 {[%emt 0:00:20]} Rg2 {[%emt 0:03:02]} 37. Qa3 {[%emt 0:01:47]} Qe4 {[%emt 0:01:05]} 38. Qb2 {[%emt 0:00:47]} f3 {[%emt 0:00:56]} 0-1

[Event "XVII Juros Svente 2020-A"]
[Site "Klaipeda"]
[Date "2020.07.21"]
[Round "2.12"]
[White "Tolmacevs, Artjoms"]
[Black "Luksas, Jonas"]
[Result "1-0"]
[ECO "B90"]
[WhiteElo "1610"]
[BlackElo "1519"]
[Annotator "NA RC"]
[PlyCount "45"]
[EventDate "2020.07.20"]
[EventType "tourn"]
[EventCountry "LTU"]
[SourceTitle "playchess.com"]
[Source "ChessBase"]
[SourceQuality "1"]
[TimeControl "40/5400+30:1800+30"]

1. e4 {[%emt 0:00:00]} c5 {[%emt 0:00:31]} 2. Nf3 {[%emt 0:00:00]} d6 {[%emt 0:00:14]} 3. d4 {[%emt 0:00:00]} cxd4 {[%emt 0:00:08]} 4. Nxd4 {[%emt 0:00:00]} Nf6 {[%emt 0:00:20]} 5. Nc3 {[%emt 0:00:00]} a6 {[%emt 0:00:11]} 6. Be3 {[%emt 0:00:01]} e5 {[%emt 0:00:15]} 7. Nb3 {[%emt 0:00:09]} Be6 {[%emt 0:00:13]} 8. f3 {[%emt 0:00:13]} Nbd7 {[%emt 0:00:34]} 9. g4 {[%emt 0:00:50]} Be7 {[%emt 0:00:16]} 10. Qd2 {[%emt 0:00:19]} O-O {[%emt 0:01:06]} 11. O-O-O {[%emt 0:00:05]} b5 {[%emt 0:00:28]} 12. g5 {[%emt 0:00:07]} Nh5 {[%emt 0:04:45]} 13. Nd5 {[%emt 0:03:49]} Bxd5 {[%emt 0:00:47]} 14. exd5 {[%emt 0:00:07]} f6 {[%emt 0:12:24]} 15. gxf6 {[%emt 0:00:38]} Bxf6 {[%emt 0:02:59]} 16. Rg1 {[%emt 0:12:29]} g6 {[%emt 0:06:05]} 17. Bd3 {[%emt 0:08:38]} Kf7 {[%emt 0:14:41]} 18. Qb4 {[%emt 0:09:02]} Nb6 {[%emt 0:07:20]} 19. Qg4 {[%emt 0:02:17]} Rg8 {[%emt 0:03:46]} 20. Qe6+ {[%emt 0:03:21]} Kg7 {[%emt 0:01:13]} 21. Bxg6 {[%emt 0:01:27]} hxg6 {[%emt 0:00:35]} 22. Rxg6+ {[%emt 0:00:04]} Kxg6 {[%emt 0:02:25]} 23. Rg1+ {[%emt 0:00:03]} 1-0

[Event "XVII Juros Svente 2020-A"]
[Site "Klaipeda"]
[Date "2020.07.22"]
[Round "3.10"]
[White "Pocius, Vaclovas"]
[Black "Januseviciute, Donata"]
[Result "1-0"]
[ECO "A05"]
[WhiteElo "1714"]
[BlackElo "1520"]
[Annotator "NA RC"]
[PlyCount "47"]
[EventDate "2020.07.20"]
[EventType "tourn"]
[EventCountry "LTU"]
[SourceTitle "playchess.com"]
[Source "ChessBase"]
[SourceQuality "1"]
[TimeControl "40/5400+30:1800+30"]

1. Nf3 {[%emt 0:00:00]} Nf6 {[%emt 0:00:00]} 2. Nc3 {[%emt 0:00:54]} d5 {[%emt 0:00:09]} 3. d4 {[%emt 0:01:27]} Bf5 {[%emt 0:03:03]} 4. Nh4 {[%emt 0:02:14]} Bg6 {[%emt 0:00:14]} 5. Nxg6 {[%emt 0:00:15]} hxg6 {[%emt 0:00:09]} 6. Bg5 {[%emt 0:00:30]} e6 {[%emt 0:00:28]} 7. e4 {[%emt 0:00:36]} dxe4 {[%emt 0:01:30]} 8. Qd2 {[%emt 0:09:56]} Bb4 {[%emt 0:04:22]} 9. Bc4 {[%emt 0:10:06]} c6 {[%emt 0:00:45]} 10. O-O-O {[%emt 0:09:09]} Qa5 {[%emt 0:01:17]} 11. Bxf6 {[%emt 0:03:56]} gxf6 {[%emt 0:08:10]} 12. Qe3 {[%emt 0:01:04]} Bxc3 {[%emt 0:02:05]} 13. bxc3 {[%emt 0:00:14]} f5 {[%emt 0:03:14]} 14. f3 {[%emt 0:01:14]} exf3 {[%emt 0:09:54]} 15. d5 {[%emt 0:03:36]} Qb6 {[%emt 0:00:58]} 16. Qe5 {[%emt 0:00:36]} Rh4 {[%emt 0:02:24]} 17. dxe6 {[%emt 0:06:42]} Rxc4 {[%emt 0:07:39]} 18. Qh8+ {[%emt 0:14:32]} Ke7 {[%emt 0:00:21]} 19. exf7 {[%emt 0:00:18]} Qe3+ {[%emt 0:02:09]} 20. Kb1 {[%emt 0:00:19]} Kxf7 {[%emt 0:00:37]} 21. Qh7+ {[%emt 0:08:24]} Kf6 {[%emt 0:00:57]} 22. Rd6+ {[%emt 0:07:29]} Ke5 {[%emt 0:02:05]} 23. Qe7+ {[%emt 0:00:14]} Kf4 {[%emt 0:01:06]} 24. g3+ {[%emt 0:00:00]} 1-0

[Event "XVII Juros Svente 2020-A"]
[Site "Klaipeda"]
[Date "2020.07.22"]
[Round "3.12"]
[White "Scekaciov, Rostislav"]
[Black "Aleidzans, Vadims"]
[Result "1-0"]
[ECO "A05"]
[WhiteElo "1458"]
[BlackElo "1346"]
[Annotator "NA RC"]
[PlyCount "81"]
[EventDate "2020.07.20"]
[EventType "tourn"]
[EventCountry "LTU"]
[SourceTitle "playchess.com"]
[Source "ChessBase"]
[SourceQuality "1"]
[TimeControl "40/5400+30:1800+30"]

1. Nf3 {[%emt 0:00:00]} Nf6 {[%emt 0:00:00]} 2. c4 {[%emt 0:00:00]} c5 {[%emt 0:00:00]} 3. g3 {[%emt 0:00:07]} g6 {[%emt 0:00:11]} 4. Bg2 {[%emt 0:00:08]} Bg7 {[%emt 0:00:09]} 5. O-O {[%emt 0:00:07]} O-O {[%emt 0:00:16]} 6. Nc3 {[%emt 0:00:16]} Nc6 {[%emt 0:02:13]} 7. e3 {[%emt 0:00:10]} d6 {[%emt 0:00:47]} 8. d4 {[%emt 0:01:11]} Bf5 {[%emt 0:00:34]} 9. Re1 {[%emt 0:02:13]} Nb4 {[%emt 0:02:30]} 10. e4 {[%emt 0:01:11]} Bg4 {[%emt 0:00:35]} 11. d5 {[%emt 0:00:25]} Nd7 {[%emt 0:02:22]} 12. a3 {[%emt 0:05:51]} Na6 {[%emt 0:01:19]} 13. Bf4 {[%emt 0:03:16]} h6 {[%emt 0:00:43]} 14. h3 {[%emt 0:01:12]} Bxf3 {[%emt 0:01:45]} 15. Qxf3 {[%emt 0:06:09]} g5 {[%emt 0:00:51]} 16. Be3 {[%emt 0:00:50]} Nab8 {[%emt 0:00:51]} 17. Qe2 {[%emt 0:00:27]} Nb6 {[%emt 0:01:17]} 18. f4 {[%emt 0:01:06]} gxf4 {[%emt 0:00:26]} 19. gxf4 {[%emt 0:00:06]} N8d7 {[%emt 0:02:39]} 20. Bf3 {[%emt 0:00:36]} Kh8 {[%emt 0:00:14]} 21. Kh2 {[%emt 0:01:03]} e6 {[%emt 0:00:43]} 22. Rg1 {[%emt 0:01:09]} exd5 {[%emt 0:01:40]} 23. cxd5 {[%emt 0:00:36]} Qe7 {[%emt 0:01:13]} 24. Bg4 {[%emt 0:01:40]} Bxc3 {[%emt 0:03:31]} 25. bxc3 {[%emt 0:00:07]} Nf6 {[%emt 0:00:55]} 26. Bf5 {[%emt 0:00:58]} Rae8 {[%emt 0:00:19]} 27. Rae1 {[%emt 0:01:35]} Rg8 {[%emt 0:12:11]} 28. c4 {[%emt 0:09:20]} Rxg1 {[%emt 0:01:10]} 29. Bxg1 {[%emt 0:01:39]} Rg8 {[%emt 0:08:48]} 30. Bf2 {[%emt 0:00:29]} Qe8 {[%emt 0:02:31]} 31. Bh4 {[%emt 0:00:37]} Nh7 {[%emt 0:13:28]} 32. e5 {[%emt 0:07:14]} dxe5 {[%emt 0:03:51]} 33. fxe5 {[%emt 0:01:55]} Qa4 {[%emt 0:01:21]} 34. e6 {[%emt 0:03:06]} fxe6 {[%emt 0:02:16]} 35. Qe5+ {[%emt 0:00:51]} Rg7 {[%emt 0:00:22]} 36. Rg1 {[%emt 0:00:45]} Ng5 {[%emt 0:00:24]} 37. Bxg5 {[%emt 0:00:56]} Nd7 {[%emt 0:03:51]} 38. Qxe6 {[%emt 0:01:28]} hxg5 {[%emt 0:00:57]} 39. Qh6+ {[%emt 0:00:17]} Kg8 {[%emt 0:00:18]} 40. Be6+ {[%emt 0:00:48]} Kf8 {[%emt 0:00:36]} 41. Qh8+ {[%emt 0:30:22]} 1-0

[Event "XVII Juros Svente 2020-A"]
[Site "Klaipeda"]
[Date "2020.07.23"]
[Round "4.9"]
[White "Bazilius, Augustinas"]
[Black "Greicius, Pijus"]
[Result "0-1"]
[ECO "A06"]
[WhiteElo "1632"]
[BlackElo "1893"]
[Annotator "NA RC"]
[PlyCount "80"]
[EventDate "2020.07.20"]
[EventType "tourn"]
[EventCountry "LTU"]
[SourceTitle "playchess.com"]
[Source "ChessBase"]
[SourceQuality "1"]
[TimeControl "40/5400+30:1800+30"]

{[%evp 21,80,0,0,2,0,-26,0,-19,0,-22,-23,-44,-31,-28,-7,-39,-20,-35,0,-35,0,-29,32767,-33,-13,-137,-113,-133,-17,-18,-16,-27,0,-21,0,-196,-227,-224,-204,-291,-314,-370,-255,-250,-275,-266,-337,-295,-349,-353,-381,-428,-413,-606,-642,-769,-914,-1158,-4910,-1631,-12831]} 1. Nf3 {[%emt 0:00:00]} d5 {[%emt 0:00:21]} 2. g3 {[%emt 0:00:41]} Nf6 {[%emt 0:01:30]} 3. Bg2 {[%emt 0:00:20]} c6 {[%emt 0:02:17]} 4. O-O {[%emt 0:00:20]} Bf5 {[%emt 0:00:20]} 5. d4 {[%emt 0:01:03]} e6 {[%emt 0:00:10]} 6. c4 {[%emt 0:00:15]} Nbd7 {[%emt 0:01:22] The main line 6...Nbd7 scores better than 6...Be7.} 7. Nc3 {[%emt 0:01:46]} Bd6 {[%emt 0:03:00]} 8. Nd2 {[%emt 0:01:49] D11: Slav Defence: 3 Nf3 sidelines and 3...Nf6 4 e3 Bg4.} O-O {[%emt 0:02:08]} 9. e4 {[%emt 0:13:08]} dxe4 {[%emt 0:00:25]} 10. Ndxe4 {[%emt 0:00:31]} Bc7 {[%emt 0:00:44] [#]} 11. f4 $146 {[%emt 0:20:07]} ({Predecessor:} 11. Be3 Nxe4 12. Nxe4 Nf6 13. Nxf6+ Qxf6 14. Qb3 Rab8 15. d5 Be5 16. Bxa7 Rbc8 17. Qxb7 {0-1 (55) Beaskoa Estany,G (2100)-Vera Siguenas,D (2525) Barcelona 2017}) 11... Nxe4 {[%emt 0:01:16]} 12. Nxe4 {[%emt 0:00:20]} Nf6 {[%emt 0:04:26]} 13. Nxf6+ {[%emt 0:03:15]} Qxf6 {[%emt 0:00:06]} 14. Be3 {[%emt 0:00:39]} Rfd8 {[%emt 0:08:58]} 15. Qe2 {[%emt 0:01:03]} Qg6 {[%emt 0:06:06]} 16. Rfc1 {[%emt 0:04:38]} Bb6 {[%emt 0:04:20]} 17. c5 {[%emt 0:02:04]} Bc7 {[%emt 0:00:05]} 18. Bf3 {[%emt 0:03:58]} Rd7 {[%emt 0:04:35]} 19. Rd1 {[%emt 0:02:39]} a5 {[%emt 0:03:21]} 20. Rac1 {[%emt 0:03:23]} Rad8 {[%emt 0:03:20]} 21. Rd2 {[%emt 0:13:43]} h6 {[%emt 0:08:17]} 22. a4 {[%emt 0:05:46]} Rb8 {[%emt 0:09:01]} 23. Bf2 {[%emt 0:02:43]} (23. Qg2 $11) 23... Bxf4 $1 {[%emt 0:00:18]} 24. Bh5 {[%emt 0:00:51]} Qg5 {[%emt 0:01:31]} (24... Bxd2 $17 25. Bxg6 Bxc1 26. Bxf5 exf5) 25. h4 {[%emt 0:00:15]} Bxd2 {[%emt 0:00:36]} 26. hxg5 {[%emt 0:00:37]} Bxc1 {[%emt 0:00:06]} 27. gxh6 {[%emt 0:06:06]} Bxh6 {[%emt 0:00:14]} 28. Qe1 $2 {[%emt 0:01:06]} (28. g4 $1 $11 {and White stays safe.} g6 29. gxf5 gxh5 30. Bg3 (30. fxe6 Rd5 $11)) 28... Ra8 {[%emt 0:00:27]} 29. Bd1 {[%emt 0:01:59]} Bg5 {[%emt 0:01:01]} 30. b4 {[%emt 0:02:53]} axb4 {[%emt 0:04:38]} 31. Qxb4 {[%emt 0:00:02]} Bd3 {[%emt 0:00:11]} 32. g4 {[%emt 0:01:50]} Bf6 {[%emt 0:00:15]} 33. Be3 {[%emt 0:01:02]} g6 {[%emt 0:01:49]} 34. g5 {[%emt 0:00:13]} Bg7 {[%emt 0:00:08]} 35. Bg4 {[%emt 0:00:34]} Ba6 {[%emt 0:00:18]} 36. Qb3 {[%emt 0:00:28]} Re8 {[%emt 0:02:37]} 37. Qd1 {[%emt 0:00:56]} Red8 {[%emt 0:00:31]} 38. Qb3 {[%emt 0:00:45]} Bxd4 {[%emt 0:02:13]} 39. Bxe6 {[%emt 0:00:02]} Bxe3+ {[%emt 0:00:18]} ({Stronger than} 39... fxe6 40. Qxe6+ Rf7 41. Bxd4 $11) 40. Qxe3 {[%emt 0:00:01]} Rd1+ $19 {[%emt 0:00:18]} 0-1